[Event "Titled Tuesday Blitz September 27 Early 2022"]
[White "Bashirli, Saadat"]
[Black "Concio, Michael Jr."]
[WhiteFideId "13429990"]
[BlackFideId "5217873"]
[WhiteElo "1173"]
[BlackElo "1896"]
[Result "0-1"]
[Round "04"]
[TimeControl "180+1"]
[Date "2022.09.27"]
[WhiteClock "0:00:12"]
[BlackClock "0:00:22"]

1. d4 {[%clk 0:03:00]}  Nf6 {[%clk 0:02:54]} 2. c4 {[%clk 0:03:00]}  e6 {[%clk 0:02:54]} 3. Nc3 {[%clk 0:02:59]}  d5 {[%clk 0:02:55]} 4. cxd5 {[%clk 0:02:55]}  exd5 {[%clk 0:02:55]} 5. Bg5 {[%clk 0:02:55]}  c6 {[%clk 0:02:53]} 6. e3 {[%clk 0:02:47]}  Bd6 {[%clk 0:02:53]} 7. Bd3 {[%clk 0:02:43]}  h6 {[%clk 0:02:54]} 8. Bh4 {[%clk 0:02:42]}  b5 {[%clk 0:02:54]} 9. Qc2 {[%clk 0:02:39]}  a5 {[%clk 0:02:53]} 10. Nge2 {[%clk 0:02:38]}  b4 {[%clk 0:02:53]} 11. Na4 {[%clk 0:02:35]}  Ba6 {[%clk 0:02:53]} 12. Bf5 {[%clk 0:02:22]}  Qe7 {[%clk 0:02:48]} 13. O-O {[%clk 0:02:16]}  g5 {[%clk 0:02:48]} 14. Bg3 {[%clk 0:02:14]}  Bxg3 {[%clk 0:02:48]} 15. Nxg3 {[%clk 0:02:15]}  Bxf1 {[%clk 0:02:48]} 16. Rxf1 {[%clk 0:02:13]}  O-O {[%clk 0:02:47]} 17. Nc5 {[%clk 0:02:08]}  Ra7 {[%clk 0:02:44]} 18. Bd3 {[%clk 0:02:06]}  Nbd7 {[%clk 0:02:42]} 19. Nf5 {[%clk 0:02:05]}  Qd8 {[%clk 0:02:39]} 20. Nxh6+ {[%clk 0:02:05]}  Kh8 {[%clk 0:02:39]} 21. f4 {[%clk 0:01:40]}  Nxc5 {[%clk 0:02:32]} 22. Qxc5 {[%clk 0:01:40]}  Re7 {[%clk 0:02:33]} 23. fxg5 {[%clk 0:01:38]}  Ng8 {[%clk 0:02:22]} 24. Qxc6 {[%clk 0:01:27]}  Qd7 {[%clk 0:02:08]} 25. Qa6 {[%clk 0:01:12]}  Re6 {[%clk 0:01:34]} 26. Qxa5 {[%clk 0:01:07]}  Nxh6 {[%clk 0:01:35]} 27. gxh6 {[%clk 0:01:08]}  Rxh6 {[%clk 0:01:35]} 28. Qxb4 {[%clk 0:01:06]}  Rg8 {[%clk 0:01:36]} 29. Bf5 {[%clk 0:00:59]}  Qc7 {[%clk 0:01:35]} 30. h3 {[%clk 0:00:52]}  Qg3 {[%clk 0:01:33]} 31. Qd2 {[%clk 0:00:50]}  Rf6 {[%clk 0:01:19]} 32. Bg4 {[%clk 0:00:35]}  Rxf1+ {[%clk 0:01:05]} 33. Kxf1 {[%clk 0:00:36]}  Rg6 {[%clk 0:00:36]} 34. Qf2 {[%clk 0:00:33]}  Qc7 {[%clk 0:00:36]} 35. Qd2 {[%clk 0:00:23]}  Rc6 {[%clk 0:00:33]} 36. Bf5 {[%clk 0:00:19]}  Qh2 {[%clk 0:00:25]} 37. b4 {[%clk 0:00:14]}  Qh1+ {[%clk 0:00:23]} 38. Kf2 {[%clk 0:00:13]}  Rc1 {[%clk 0:00:20]} 39. Kg3 {[%clk 0:00:10]}  Qf1 {[%clk 0:00:14]} 40. Qf2 {[%clk 0:00:08]}  Qa6 {[%clk 0:00:10]} 41. Qf4 {[%clk 0:00:05]}  Qf6 {[%clk 0:00:07]} 42. Qh4+ {[%clk 0:00:04]}  Qxh4+ {[%clk 0:00:07]} 43. Kxh4 {[%clk 0:00:05]}  Re1 {[%clk 0:00:06]} 44. b5 {[%clk 0:00:03]}  Re2 {[%clk 0:00:04]} 45. a4 {[%clk 0:00:02]}  Rb2 {[%clk 0:00:05]} 46. Bd7 {[%clk 0:00:01]}  Rb3 {[%clk 0:00:04]} 47. Bc6 {[%clk 0:00:02]}  Rxe3 {[%clk 0:00:04]} 48. Bxd5 {[%clk 0:00:02]}  Rd3 {[%clk 0:00:04]} 49. Bc6 {[%clk 0:00:03]}  Rxd4+ {[%clk 0:00:05]} 50. Kg5 {[%clk 0:00:03]}  Rxa4 {[%clk 0:00:06]} 51. Kf6 {[%clk 0:00:03]}  Kg8 {[%clk 0:00:06]} 52. Be8 {[%clk 0:00:03]}  Kf8 {[%clk 0:00:05]} 53. Bxf7 {[%clk 0:00:03]}  Rf4+ {[%clk 0:00:06]} 54. Ke6 {[%clk 0:00:03]}  Rxf7 {[%clk 0:00:06]} 55. g4 {[%clk 0:00:03]}  Rb7 {[%clk 0:00:06]} 56. g5 {[%clk 0:00:03]}  Rxb5 {[%clk 0:00:07]} 57. h4 {[%clk 0:00:03]}  Kg7 {[%clk 0:00:08]} 58. Kd6 {[%clk 0:00:02]}  Kg6 {[%clk 0:00:09]} 59. Kc6 {[%clk 0:00:02]}  Rb4 {[%clk 0:00:09]} 60. Kc5 {[%clk 0:00:02]}  Rxh4 {[%clk 0:00:10]} 61. Kd5 {[%clk 0:00:03]}  Kxg5 {[%clk 0:00:11]} 62. Ke5 {[%clk 0:00:04]}  Rf4 {[%clk 0:00:12]} 63. Kd5 {[%clk 0:00:05]}  Kf5 {[%clk 0:00:12]} 64. Kd6 {[%clk 0:00:05]}  Re4 {[%clk 0:00:13]} 65. Kd7 {[%clk 0:00:06]}  Re6 {[%clk 0:00:14]} 66. Kc7 {[%clk 0:00:06]}  Ke5 {[%clk 0:00:15]} 67. Kd7 {[%clk 0:00:07]}  Kd5 {[%clk 0:00:16]} 68. Kc7 {[%clk 0:00:08]}  Re7+ {[%clk 0:00:16]} 69. Kc8 {[%clk 0:00:08]}  Rf7 {[%clk 0:00:17]} 70. Kd8 {[%clk 0:00:09]}  Kc6 {[%clk 0:00:17]} 71. Ke8 {[%clk 0:00:10]}  Rc7 {[%clk 0:00:17]} 72. Kf8 {[%clk 0:00:11]}  Kd6 {[%clk 0:00:18]} 73. Ke8 {[%clk 0:00:12]}  Ke6 {[%clk 0:00:19]} 74. Kf8 {[%clk 0:00:13]}  Kf6 {[%clk 0:00:19]} 75. Kg8 {[%clk 0:00:14]}  Rf7 {[%clk 0:00:19]} 76. Kh8 {[%clk 0:00:15]}  Kg6 {[%clk 0:00:20]} 77. Kg8 {[%clk 0:00:11]}  Rf5 {[%clk 0:00:21]} 78. Kh8 {[%clk 0:00:12]}  Rf8# {[%clk 0:00:22]} 0-1


[Site "https://www.chess.com"]

[Event "Titled Tuesday Blitz September 27 Early 2022"]
[White "Becerra, Juan David"]
[Black "Sipila, Vilka"]
[WhiteFideId "4404998"]
[BlackFideId "505455"]
[WhiteElo "2278"]
[BlackElo "2329"]
[Result "0-1"]
[Round "04"]
[TimeControl "180+1"]
[Date "2022.09.27"]
[WhiteClock "0:01:05"]
[BlackClock "0:01:33"]

1. d4 {[%clk 0:02:47]}  f5 {[%clk 0:02:58]} 2. g3 {[%clk 0:02:42]}  Nf6 {[%clk 0:02:53]} 3. Bg2 {[%clk 0:02:40]}  g6 {[%clk 0:02:53]} 4. Nh3 {[%clk 0:02:40]}  Bg7 {[%clk 0:02:54]} 5. Nf4 {[%clk 0:02:40]}  O-O {[%clk 0:02:54]} 6. O-O {[%clk 0:02:35]}  d6 {[%clk 0:02:54]} 7. d5 {[%clk 0:02:34]}  e5 {[%clk 0:02:53]} 8. dxe6 {[%clk 0:02:32]}  Na6 {[%clk 0:02:53]} 9. Nd5 {[%clk 0:02:15]}  Nxd5 {[%clk 0:02:49]} 10. Bxd5 {[%clk 0:02:12]}  Kh8 {[%clk 0:02:46]} 11. Nc3 {[%clk 0:02:05]}  c6 {[%clk 0:02:46]} 12. Bg2 {[%clk 0:02:05]}  d5 {[%clk 0:02:35]} 13. h4 {[%clk 0:02:01]}  Bxe6 {[%clk 0:02:34]} 14. Bg5 {[%clk 0:02:00]}  Qb6 {[%clk 0:02:32]} 15. Rb1 {[%clk 0:01:49]}  d4 {[%clk 0:02:17]} 16. Na4 {[%clk 0:01:42]}  Qc7 {[%clk 0:02:08]} 17. b3 {[%clk 0:01:37]}  b5 {[%clk 0:01:59]} 18. Nb2 {[%clk 0:01:36]}  Nb4 {[%clk 0:01:59]} 19. Qd2 {[%clk 0:01:29]}  Nxa2 {[%clk 0:01:57]} 20. Ra1 {[%clk 0:01:25]}  Nc3 {[%clk 0:01:57]} 21. e3 {[%clk 0:01:23]}  Ne4 {[%clk 0:01:48]} 22. Bxe4 {[%clk 0:01:21]}  dxe3 {[%clk 0:01:48]} 23. Bxe3 {[%clk 0:01:20]}  fxe4 {[%clk 0:01:45]} 24. Bd4 {[%clk 0:01:14]}  Rad8 {[%clk 0:01:43]} 25. Bxg7+ {[%clk 0:01:12]}  Qxg7 {[%clk 0:01:44]} 26. Qc1 {[%clk 0:01:08]}  Bh3 {[%clk 0:01:41]} 27. Re1 {[%clk 0:01:07]}  Qf6 {[%clk 0:01:34]} 28. Nd1 {[%clk 0:01:06]}  Qf3 {[%clk 0:01:33]} 29. Ne3 {[%clk 0:01:05]}  Qxf2+ {[%clk 0:01:33]} 0-1


[Site "https://www.chess.com"]

[Event "Titled Tuesday Blitz September 27 Early 2022"]
[White "Bettalli, Francesco"]
[Black "Nazari, Arad"]
[WhiteFideId "2816453"]
[BlackFideId "12577324"]
[WhiteElo "2216"]
[BlackElo "2129"]
[Result "0-1"]
[Round "04"]
[TimeControl "180+1"]
[Date "2022.09.27"]
[WhiteClock "0:00:37"]
[BlackClock "0:01:12"]

1. d4 {[%clk 0:03:00]}  Nf6 {[%clk 0:02:59]} 2. Nc3 {[%clk 0:02:53]}  d5 {[%clk 0:02:59]} 3. Bg5 {[%clk 0:02:52]}  e6 {[%clk 0:02:55]} 4. e4 {[%clk 0:02:29]}  dxe4 {[%clk 0:02:50]} 5. Nxe4 {[%clk 0:02:30]}  Be7 {[%clk 0:02:51]} 6. Bxf6 {[%clk 0:02:24]}  Bxf6 {[%clk 0:02:52]} 7. Nf3 {[%clk 0:02:24]}  O-O {[%clk 0:02:39]} 8. c3 {[%clk 0:02:01]}  b6 {[%clk 0:02:29]} 9. Bd3 {[%clk 0:01:48]}  Bb7 {[%clk 0:02:28]} 10. O-O {[%clk 0:01:32]}  Nd7 {[%clk 0:02:26]} 11. Qe2 {[%clk 0:01:31]}  Qe7 {[%clk 0:02:20]} 12. Rad1 {[%clk 0:01:26]}  c5 {[%clk 0:02:17]} 13. Nxf6+ {[%clk 0:01:17]}  Nxf6 {[%clk 0:02:14]} 14. dxc5 {[%clk 0:01:09]}  Qxc5 {[%clk 0:02:14]} 15. Qe5 {[%clk 0:01:09]}  Bxf3 {[%clk 0:02:13]} 16. Qxc5 {[%clk 0:01:09]}  bxc5 {[%clk 0:02:13]} 17. gxf3 {[%clk 0:01:09]}  Rab8 {[%clk 0:02:14]} 18. b3 {[%clk 0:01:08]}  Nd5 {[%clk 0:02:14]} 19. Rc1 {[%clk 0:01:06]}  Rfd8 {[%clk 0:02:13]} 20. Bc4 {[%clk 0:01:06]}  Nf4 {[%clk 0:02:10]} 21. Rfd1 {[%clk 0:01:04]}  g5 {[%clk 0:02:09]} 22. Kf1 {[%clk 0:01:01]}  Kg7 {[%clk 0:02:09]} 23. Ke1 {[%clk 0:01:01]}  Kf6 {[%clk 0:02:07]} 24. a3 {[%clk 0:01:00]}  a5 {[%clk 0:02:04]} 25. Rc2 {[%clk 0:00:58]}  Rxd1+ {[%clk 0:02:03]} 26. Kxd1 {[%clk 0:00:59]}  Rd8+ {[%clk 0:02:00]} 27. Ke1 {[%clk 0:00:59]}  Ng6 {[%clk 0:01:52]} 28. b4 {[%clk 0:00:58]}  cxb4 {[%clk 0:01:52]} 29. cxb4 {[%clk 0:00:58]}  axb4 {[%clk 0:01:53]} 30. axb4 {[%clk 0:00:59]}  Ne5 {[%clk 0:01:53]} 31. Be2 {[%clk 0:00:59]}  Nd3+ {[%clk 0:01:42]} 32. Bxd3 {[%clk 0:00:56]}  Rxd3 {[%clk 0:01:43]} 33. Rb2 {[%clk 0:00:53]}  Rxf3 {[%clk 0:01:39]} 34. b5 {[%clk 0:00:53]}  Rd3 {[%clk 0:01:39]} 35. b6 {[%clk 0:00:54]}  Rd8 {[%clk 0:01:39]} 36. b7 {[%clk 0:00:54]}  Rb8 {[%clk 0:01:40]} 37. Ke2 {[%clk 0:00:54]}  Ke5 {[%clk 0:01:40]} 38. Rb5+ {[%clk 0:00:53]}  Kd6 {[%clk 0:01:31]} 39. Rxg5 {[%clk 0:00:51]}  Rxb7 {[%clk 0:01:31]} 40. Rg7 {[%clk 0:00:51]}  h5 {[%clk 0:01:29]} 41. Rg5 {[%clk 0:00:51]}  h4 {[%clk 0:01:27]} 42. Rg4 {[%clk 0:00:51]}  Rb2+ {[%clk 0:01:25]} 43. Kf1 {[%clk 0:00:41]}  h3 {[%clk 0:01:25]} 44. Rg3 {[%clk 0:00:41]}  Rb1+ {[%clk 0:01:22]} 45. Ke2 {[%clk 0:00:41]}  f5 {[%clk 0:01:22]} 46. Rxh3 {[%clk 0:00:41]}  Ke5 {[%clk 0:01:23]} 47. Ra3 {[%clk 0:00:40]}  Kf4 {[%clk 0:01:20]} 48. Ra4+ {[%clk 0:00:40]}  Kg5 {[%clk 0:01:20]} 49. Kf3 {[%clk 0:00:40]}  e5 {[%clk 0:01:18]} 50. Kg2 {[%clk 0:00:40]}  e4 {[%clk 0:01:17]} 51. Ra8 {[%clk 0:00:39]}  Rb2 {[%clk 0:01:17]} 52. Re8 {[%clk 0:00:39]}  Kg4 {[%clk 0:01:16]} 53. Rg8+ {[%clk 0:00:38]}  Kf4 {[%clk 0:01:16]} 54. Re8 {[%clk 0:00:39]}  Re2 {[%clk 0:01:12]} 55. Kf1 {[%clk 0:00:38]}  Kf3 {[%clk 0:01:12]} 56. Kg1 {[%clk 0:00:37]}  Re1# {[%clk 0:01:12]} 0-1


[Site "https://www.chess.com"]

[Event "Titled Tuesday Blitz September 27 Early 2022"]
[White "Bharath Subramaniyam H"]
[Black "Priyanka Nutakki"]
[WhiteFideId "46634827"]
[BlackFideId "25049615"]
[WhiteElo "2346"]
[BlackElo "1912"]
[Result "1-0"]
[Round "04"]
[TimeControl "180+1"]
[Date "2022.09.27"]
[WhiteClock "0:00:10"]
[BlackClock "0:00:02"]

1. d4 {[%clk 0:03:00]}  d5 {[%clk 0:02:58]} 2. Nf3 {[%clk 0:03:00]}  Nf6 {[%clk 0:02:58]} 3. c3 {[%clk 0:03:00]}  e6 {[%clk 0:02:57]} 4. Bf4 {[%clk 0:03:00]}  Bd6 {[%clk 0:02:57]} 5. e3 {[%clk 0:03:00]}  O-O {[%clk 0:02:57]} 6. Nbd2 {[%clk 0:03:00]}  c5 {[%clk 0:02:57]} 7. Bg3 {[%clk 0:03:00]}  Qc7 {[%clk 0:02:55]} 8. Ne5 {[%clk 0:02:47]}  Nc6 {[%clk 0:02:55]} 9. f4 {[%clk 0:02:46]}  Ne7 {[%clk 0:02:55]} 10. Bd3 {[%clk 0:02:44]}  Nf5 {[%clk 0:02:55]} 11. Bf2 {[%clk 0:02:44]}  Be7 {[%clk 0:02:54]} 12. g4 {[%clk 0:02:39]}  Nd6 {[%clk 0:02:54]} 13. Qf3 {[%clk 0:02:39]}  b6 {[%clk 0:02:50]} 14. Bh4 {[%clk 0:02:26]}  Nfe4 {[%clk 0:02:44]} 15. Bxe7 {[%clk 0:02:25]}  Qxe7 {[%clk 0:02:45]} 16. g5 {[%clk 0:02:11]}  Bb7 {[%clk 0:02:38]} 17. O-O-O {[%clk 0:02:08]}  Rac8 {[%clk 0:02:31]} 18. Kb1 {[%clk 0:02:02]}  cxd4 {[%clk 0:02:24]} 19. exd4 {[%clk 0:01:52]}  b5 {[%clk 0:02:10]} 20. Nb3 {[%clk 0:01:51]}  a6 {[%clk 0:01:46]} 21. Qe2 {[%clk 0:01:41]}  Nf5 {[%clk 0:01:42]} 22. Bxe4 {[%clk 0:01:38]}  dxe4 {[%clk 0:01:41]} 23. Nc5 {[%clk 0:01:38]}  Nd6 {[%clk 0:01:31]} 24. h4 {[%clk 0:01:34]}  Bd5 {[%clk 0:01:28]} 25. h5 {[%clk 0:01:33]}  a5 {[%clk 0:01:25]} 26. h6 {[%clk 0:01:31]}  g6 {[%clk 0:01:23]} 27. Ned7 {[%clk 0:01:21]}  Rfd8 {[%clk 0:01:02]} 28. Nf6+ {[%clk 0:01:21]}  Kh8 {[%clk 0:01:02]} 29. Rh3 {[%clk 0:00:49]}  b4 {[%clk 0:00:51]} 30. Nfxe4 {[%clk 0:00:48]}  Nxe4 {[%clk 0:00:35]} 31. Nxe4 {[%clk 0:00:47]}  bxc3 {[%clk 0:00:27]} 32. Nxc3 {[%clk 0:00:44]}  Qc7 {[%clk 0:00:25]} 33. Qe5+ {[%clk 0:00:42]}  Qxe5 {[%clk 0:00:24]} 34. fxe5 {[%clk 0:00:42]}  Kg8 {[%clk 0:00:22]} 35. Rh4 {[%clk 0:00:39]}  Bc6 {[%clk 0:00:19]} 36. Rf4 {[%clk 0:00:39]}  Rc7 {[%clk 0:00:19]} 37. a3 {[%clk 0:00:32]}  Rcd7 {[%clk 0:00:17]} 38. Kc2 {[%clk 0:00:30]}  Rc8 {[%clk 0:00:18]} 39. Kd3 {[%clk 0:00:29]}  Bb7 {[%clk 0:00:17]} 40. Ke3 {[%clk 0:00:29]}  Rb8 {[%clk 0:00:16]} 41. Rd2 {[%clk 0:00:28]}  Bc6 {[%clk 0:00:15]} 42. Rdf2 {[%clk 0:00:27]}  a4 {[%clk 0:00:14]} 43. Ne2 {[%clk 0:00:16]}  Rb3+ {[%clk 0:00:14]} 44. Nc3 {[%clk 0:00:17]}  Rb8 {[%clk 0:00:14]} 45. Rd2 {[%clk 0:00:16]}  Rb3 {[%clk 0:00:13]} 46. Rff2 {[%clk 0:00:16]}  Rdb7 {[%clk 0:00:13]} 47. Kd3 {[%clk 0:00:14]}  Rd7 {[%clk 0:00:09]} 48. Kc2 {[%clk 0:00:13]}  Rb8 {[%clk 0:00:10]} 49. Kb1 {[%clk 0:00:13]}  Rbd8 {[%clk 0:00:10]} 50. b4 {[%clk 0:00:12]}  Rxd4 {[%clk 0:00:09]} 51. Rxd4 {[%clk 0:00:11]}  Rxd4 {[%clk 0:00:10]} 52. Kc2 {[%clk 0:00:08]}  Rd8 {[%clk 0:00:08]} 53. Rd2 {[%clk 0:00:09]}  Rc8 {[%clk 0:00:08]} 54. Rd6 {[%clk 0:00:08]}  Kf8 {[%clk 0:00:07]} 55. Kd2 {[%clk 0:00:09]}  Ke7 {[%clk 0:00:07]} 56. b5 {[%clk 0:00:09]}  Bd7 {[%clk 0:00:07]} 57. b6 {[%clk 0:00:10]}  Rb8 {[%clk 0:00:04]} 58. Ne4 {[%clk 0:00:10]}  Bc8 {[%clk 0:00:05]} 59. Nf6 {[%clk 0:00:09]}  Rb7 {[%clk 0:00:04]} 60. Nxh7 {[%clk 0:00:09]}  Bd7 {[%clk 0:00:03]} 61. Nf6 {[%clk 0:00:09]}  Bb5 {[%clk 0:00:02]} 62. h7 {[%clk 0:00:10]}  Rb8 {[%clk 0:00:02]} 63. Ng8+ {[%clk 0:00:10]} 1-0


[Site "https://www.chess.com"]

[Event "Titled Tuesday Blitz September 27 Early 2022"]
[White "Bilan, Danila"]
[Black "Mahdavi, Reza"]
[WhiteFideId "24161918"]
[BlackFideId "12595926"]
[WhiteElo "2164"]
[BlackElo "2240"]
[Result "0-1"]
[Round "04"]
[TimeControl "180+1"]
[Date "2022.09.27"]
[WhiteClock "0:00:02"]
[BlackClock "0:00:49"]

1. d4 {[%clk 0:03:00]}  Nf6 {[%clk 0:02:59]} 2. Nf3 {[%clk 0:02:58]}  g6 {[%clk 0:02:59]} 3. Bg5 {[%clk 0:02:58]}  Bg7 {[%clk 0:02:59]} 4. c3 {[%clk 0:02:58]}  O-O {[%clk 0:03:00]} 5. Nbd2 {[%clk 0:02:58]}  d5 {[%clk 0:03:00]} 6. e3 {[%clk 0:02:59]}  c5 {[%clk 0:03:01]} 7. Bd3 {[%clk 0:02:59]}  Nc6 {[%clk 0:03:01]} 8. O-O {[%clk 0:02:58]}  b6 {[%clk 0:03:02]} 9. Qe2 {[%clk 0:02:52]}  Bb7 {[%clk 0:03:02]} 10. a4 {[%clk 0:02:52]}  a6 {[%clk 0:02:51]} 11. Rfe1 {[%clk 0:02:47]}  Re8 {[%clk 0:02:50]} 12. dxc5 {[%clk 0:02:11]}  bxc5 {[%clk 0:02:49]} 13. e4 {[%clk 0:02:11]}  d4 {[%clk 0:02:33]} 14. cxd4 {[%clk 0:01:53]}  cxd4 {[%clk 0:02:34]} 15. e5 {[%clk 0:01:33]}  Nd5 {[%clk 0:02:32]} 16. Nc4 {[%clk 0:01:20]}  Bc8 {[%clk 0:02:20]} 17. Rad1 {[%clk 0:01:06]}  Be6 {[%clk 0:02:19]} 18. Be4 {[%clk 0:01:00]}  h6 {[%clk 0:02:17]} 19. Bc1 {[%clk 0:00:53]}  Ndb4 {[%clk 0:01:59]} 20. b3 {[%clk 0:00:42]}  Rc8 {[%clk 0:01:55]} 21. h4 {[%clk 0:00:33]}  Bg4 {[%clk 0:01:48]} 22. Bb2 {[%clk 0:00:25]}  Nxe5 {[%clk 0:01:37]} 23. Ncxe5 {[%clk 0:00:19]}  Bxe5 {[%clk 0:01:37]} 24. Bxg6 {[%clk 0:00:13]}  Bf6 {[%clk 0:01:30]} 25. Bd3 {[%clk 0:00:10]}  Qd5 {[%clk 0:01:26]} 26. Bc4 {[%clk 0:00:10]}  Bxf3 {[%clk 0:01:13]} 27. Qxf3 {[%clk 0:00:04]}  Qxf3 {[%clk 0:01:14]} 28. gxf3 {[%clk 0:00:05]}  e5 {[%clk 0:01:13]} 29. Rf1 {[%clk 0:00:03]}  a5 {[%clk 0:01:10]} 30. h5 {[%clk 0:00:03]}  Kf8 {[%clk 0:01:07]} 31. Ba3 {[%clk 0:00:03]}  Be7 {[%clk 0:01:05]} 32. Bxb4 {[%clk 0:00:03]}  Bxb4 {[%clk 0:01:06]} 33. Rd3 {[%clk 0:00:02]}  Ke7 {[%clk 0:01:06]} 34. Rfd1 {[%clk 0:00:02]}  Rg8+ {[%clk 0:01:06]} 35. Kf1 {[%clk 0:00:03]}  Rg5 {[%clk 0:01:07]} 36. Ke2 {[%clk 0:00:03]}  Rf5 {[%clk 0:01:03]} 37. Rh1 {[%clk 0:00:03]}  Rg8 {[%clk 0:01:04]} 38. Rdd1 {[%clk 0:00:04]}  Rgg5 {[%clk 0:01:02]} 39. Rdg1 {[%clk 0:00:04]}  Kf6 {[%clk 0:00:55]} 40. Bd3 {[%clk 0:00:04]}  Rxg1 {[%clk 0:00:54]} 41. Rxg1 {[%clk 0:00:04]}  Rxh5 {[%clk 0:00:55]} 42. Be4 {[%clk 0:00:04]}  Rh2 {[%clk 0:00:52]} 43. Rg8 {[%clk 0:00:03]}  d3+ {[%clk 0:00:51]} 44. Bxd3 {[%clk 0:00:03]}  Bc5 {[%clk 0:00:51]} 45. Bc4 {[%clk 0:00:03]}  Rxf2+ {[%clk 0:00:51]} 46. Kd3 {[%clk 0:00:02]}  Rxf3+ {[%clk 0:00:50]} 47. Ke4 {[%clk 0:00:03]}  Rf4+ {[%clk 0:00:50]} 48. Kd5 {[%clk 0:00:03]}  Bb4 {[%clk 0:00:50]} 49. Rh8 {[%clk 0:00:04]}  Kg7 {[%clk 0:00:50]} 50. Rc8 {[%clk 0:00:03]}  Bc3 {[%clk 0:00:49]} 51. Bd3 {[%clk 0:00:02]}  Rd4+ {[%clk 0:00:49]} 0-1


[Site "https://www.chess.com"]

[Event "Titled Tuesday Blitz September 27 Early 2022"]
[White "Blokhin, Sofia"]
[Black "Namitbir Singh Walia"]
[WhiteFideId "4508190"]
[BlackFideId "35071068"]
[WhiteElo "1771"]
[BlackElo "1664"]
[Result "1-0"]
[Round "04"]
[TimeControl "180+1"]
[Date "2022.09.27"]
[WhiteClock "0:00:09"]
[BlackClock "0:00:02"]

1. d4 {[%clk 0:03:00]}  d5 {[%clk 0:02:58]} 2. c4 {[%clk 0:02:58]}  c6 {[%clk 0:02:57]} 3. Nc3 {[%clk 0:02:58]}  Nf6 {[%clk 0:02:57]} 4. cxd5 {[%clk 0:02:58]}  cxd5 {[%clk 0:02:57]} 5. e3 {[%clk 0:02:57]}  Nc6 {[%clk 0:02:56]} 6. Nf3 {[%clk 0:02:58]}  Bg4 {[%clk 0:02:52]} 7. Bd3 {[%clk 0:02:57]}  e6 {[%clk 0:02:51]} 8. O-O {[%clk 0:02:55]}  Bd6 {[%clk 0:02:51]} 9. h3 {[%clk 0:02:54]}  Bh5 {[%clk 0:02:51]} 10. Ne2 {[%clk 0:02:52]}  Bxf3 {[%clk 0:02:49]} 11. gxf3 {[%clk 0:02:53]}  O-O {[%clk 0:02:48]} 12. f4 {[%clk 0:02:50]}  Rc8 {[%clk 0:02:33]} 13. Bd2 {[%clk 0:02:44]}  Ne4 {[%clk 0:02:27]} 14. Bxe4 {[%clk 0:02:30]}  dxe4 {[%clk 0:02:27]} 15. Ng3 {[%clk 0:02:18]}  f5 {[%clk 0:02:25]} 16. f3 {[%clk 0:02:15]}  Qh4 {[%clk 0:02:00]} 17. Kg2 {[%clk 0:01:44]}  exf3+ {[%clk 0:00:57]} 18. Qxf3 {[%clk 0:01:45]}  Rf6 {[%clk 0:00:51]} 19. Be1 {[%clk 0:01:37]}  Rg6 {[%clk 0:00:49]} 20. Kh2 {[%clk 0:01:33]}  Qf6 {[%clk 0:00:37]} 21. Rc1 {[%clk 0:01:27]}  Qd8 {[%clk 0:00:33]} 22. Bd2 {[%clk 0:01:21]}  Rf6 {[%clk 0:00:25]} 23. Nh5 {[%clk 0:01:19]}  Rf7 {[%clk 0:00:25]} 24. Rg1 {[%clk 0:01:16]}  g6 {[%clk 0:00:24]} 25. Ng3 {[%clk 0:01:13]}  Bb8 {[%clk 0:00:22]} 26. Qd1 {[%clk 0:01:10]}  Rfc7 {[%clk 0:00:21]} 27. Qb3 {[%clk 0:01:09]}  Qd5 {[%clk 0:00:18]} 28. Qxd5 {[%clk 0:01:03]}  exd5 {[%clk 0:00:19]} 29. Nxf5 {[%clk 0:01:03]}  Rd7 {[%clk 0:00:13]} 30. Ng3 {[%clk 0:00:58]}  Re8 {[%clk 0:00:13]} 31. Kh1 {[%clk 0:00:53]}  Kf7 {[%clk 0:00:11]} 32. Rcf1 {[%clk 0:00:51]}  Kf6 {[%clk 0:00:11]} 33. Ne2 {[%clk 0:00:44]}  Re4 {[%clk 0:00:09]} 34. Nc3 {[%clk 0:00:41]}  Re8 {[%clk 0:00:07]} 35. Rg5 {[%clk 0:00:41]}  Ne7 {[%clk 0:00:05]} 36. Rg2 {[%clk 0:00:30]}  Nf5 {[%clk 0:00:05]} 37. Nd1 {[%clk 0:00:20]}  a6 {[%clk 0:00:06]} 38. a3 {[%clk 0:00:19]}  b5 {[%clk 0:00:05]} 39. b4 {[%clk 0:00:17]}  Bd6 {[%clk 0:00:05]} 40. Re1 {[%clk 0:00:15]}  Rc7 {[%clk 0:00:05]} 41. Nc3 {[%clk 0:00:14]}  Ke6 {[%clk 0:00:03]} 42. e4 {[%clk 0:00:12]}  Nxd4 {[%clk 0:00:03]} 43. exd5+ {[%clk 0:00:11]}  Kf7 {[%clk 0:00:03]} 44. Rxe8 {[%clk 0:00:10]}  Kxe8 {[%clk 0:00:04]} 45. Ne4 {[%clk 0:00:09]}  Kd7 {[%clk 0:00:02]} 46. Nf6+ {[%clk 0:00:09]} 1-0


[Site "https://www.chess.com"]

[Event "Titled Tuesday Blitz September 27 Early 2022"]
[White "Butti, Enrique"]
[Black "Samaganova, Aleksandra"]
[WhiteFideId "3700470"]
[BlackFideId "13800221"]
[WhiteElo "2080"]
[BlackElo "1864"]
[Result "1-0"]
[Round "04"]
[TimeControl "180+1"]
[Date "2022.09.27"]
[WhiteClock "0:00:21"]
[BlackClock "0:00:02"]

1. d4 {[%clk 0:03:00]}  Nf6 {[%clk 0:02:56]} 2. Nf3 {[%clk 0:02:59]}  e6 {[%clk 0:02:55]} 3. e3 {[%clk 0:02:59]}  b6 {[%clk 0:02:55]} 4. Bd3 {[%clk 0:02:58]}  Bb7 {[%clk 0:02:50]} 5. O-O {[%clk 0:02:57]}  c5 {[%clk 0:02:48]} 6. b3 {[%clk 0:02:57]}  Be7 {[%clk 0:02:48]} 7. Bb2 {[%clk 0:02:56]}  O-O {[%clk 0:02:48]} 8. c4 {[%clk 0:02:55]}  cxd4 {[%clk 0:02:46]} 9. exd4 {[%clk 0:02:55]}  d5 {[%clk 0:02:46]} 10. Nc3 {[%clk 0:02:54]}  Nc6 {[%clk 0:02:43]} 11. Qe2 {[%clk 0:02:53]}  Rc8 {[%clk 0:02:35]} 12. Rad1 {[%clk 0:02:51]}  Qc7 {[%clk 0:02:18]} 13. h3 {[%clk 0:02:34]}  Rfd8 {[%clk 0:02:15]} 14. Qe3 {[%clk 0:02:33]}  Nb4 {[%clk 0:02:03]} 15. Be2 {[%clk 0:02:20]}  Qb8 {[%clk 0:01:51]} 16. Ne5 {[%clk 0:02:12]}  Nc6 {[%clk 0:01:41]} 17. f4 {[%clk 0:02:05]}  Na5 {[%clk 0:01:21]} 18. cxd5 {[%clk 0:01:57]}  Bxd5 {[%clk 0:01:17]} 19. f5 {[%clk 0:01:51]}  Qb7 {[%clk 0:01:06]} 20. fxe6 {[%clk 0:01:40]}  Bxe6 {[%clk 0:01:06]} 21. Bf3 {[%clk 0:01:32]}  Rxc3 {[%clk 0:00:24]} 22. Bxc3 {[%clk 0:01:26]}  Bd5 {[%clk 0:00:23]} 23. Bxa5 {[%clk 0:01:15]}  bxa5 {[%clk 0:00:22]} 24. Bxd5 {[%clk 0:01:07]}  Qxd5 {[%clk 0:00:20]} 25. Qf3 {[%clk 0:01:04]}  Qb5 {[%clk 0:00:14]} 26. d5 {[%clk 0:00:55]}  Bc5+ {[%clk 0:00:13]} 27. Kh1 {[%clk 0:00:54]}  Bd6 {[%clk 0:00:12]} 28. Nc6 {[%clk 0:00:53]}  Rd7 {[%clk 0:00:09]} 29. Rfe1 {[%clk 0:00:47]}  h6 {[%clk 0:00:07]} 30. g4 {[%clk 0:00:45]}  a4 {[%clk 0:00:05]} 31. h4 {[%clk 0:00:40]}  Qb4 {[%clk 0:00:03]} 32. Rg1 {[%clk 0:00:34]}  Qe4 {[%clk 0:00:01]} 33. Qxe4 {[%clk 0:00:32]}  Nxe4 {[%clk 0:00:02]} 34. Kg2 {[%clk 0:00:31]}  Nf6 {[%clk 0:00:01]} 35. Kf3 {[%clk 0:00:30]}  Bc5 {[%clk 0:00:02]} 36. Rge1 {[%clk 0:00:29]}  Rxd5 {[%clk 0:00:02]} 37. Rxd5 {[%clk 0:00:27]}  Nxd5 {[%clk 0:00:02]} 38. bxa4 {[%clk 0:00:27]}  Nc3 {[%clk 0:00:02]} 39. Re8+ {[%clk 0:00:25]}  Kh7 {[%clk 0:00:02]} 40. Ra8 {[%clk 0:00:24]}  Nxa4 {[%clk 0:00:02]} 41. Nxa7 {[%clk 0:00:24]}  Nc3 {[%clk 0:00:02]} 42. Nc6 {[%clk 0:00:21]} 1-0


[Site "https://www.chess.com"]